[Event "Titled Tuesday Blitz March 15 Late 2022"]
[White "Lazavik, Denis"]
[Black "Zhigalko, Sergei"]
[WhiteFideId "13515110"]
[BlackFideId "13502956"]
[WhiteElo "2437"]
[BlackElo "2662"]
[Result "1/2-1/2"]
[Round "08"]
[TimeControl "180+1"]
[Date "2022.03.15"]
[WhiteClock "0:00:05"]
[BlackClock "0:00:05"]

1. d4 {[%clk 0:03:00]}  Nf6 {[%clk 0:02:59]} 2. c4 {[%clk 0:03:00]}  e6 {[%clk 0:03:00]} 3. Nf3 {[%clk 0:03:00]}  b6 {[%clk 0:02:59]} 4. g3 {[%clk 0:03:00]}  Ba6 {[%clk 0:02:59]} 5. b3 {[%clk 0:03:00]}  Bb4+ {[%clk 0:02:57]} 6. Bd2 {[%clk 0:03:01]}  Be7 {[%clk 0:02:58]} 7. Nc3 {[%clk 0:02:53]}  O-O {[%clk 0:02:56]} 8. Bg2 {[%clk 0:02:52]}  c6 {[%clk 0:02:52]} 9. e4 {[%clk 0:02:52]}  d5 {[%clk 0:02:52]} 10. exd5 {[%clk 0:02:52]}  cxd5 {[%clk 0:02:52]} 11. Ne5 {[%clk 0:02:53]}  Bb7 {[%clk 0:02:51]} 12. O-O {[%clk 0:02:53]}  Nc6 {[%clk 0:02:51]} 13. Bf4 {[%clk 0:02:45]}  Rc8 {[%clk 0:02:50]} 14. Rc1 {[%clk 0:02:43]}  Ba3 {[%clk 0:02:50]} 15. Rc2 {[%clk 0:02:41]}  a6 {[%clk 0:02:51]} 16. Nxc6 {[%clk 0:02:37]}  Bxc6 {[%clk 0:02:50]} 17. cxd5 {[%clk 0:02:37]}  Nxd5 {[%clk 0:02:40]} 18. Nxd5 {[%clk 0:02:37]}  Bxd5 {[%clk 0:02:40]} 19. Rxc8 {[%clk 0:02:37]}  Qxc8 {[%clk 0:02:41]} 20. Bxd5 {[%clk 0:02:37]}  exd5 {[%clk 0:02:42]} 21. Qd3 {[%clk 0:02:38]}  Re8 {[%clk 0:02:37]} 22. Kg2 {[%clk 0:02:25]}  h6 {[%clk 0:02:34]} 23. h4 {[%clk 0:02:24]}  b5 {[%clk 0:02:23]} 24. Rd1 {[%clk 0:02:16]}  Qg4 {[%clk 0:01:51]} 25. Qf3 {[%clk 0:02:06]}  h5 {[%clk 0:01:45]} 26. Rd3 {[%clk 0:01:50]}  Re4 {[%clk 0:01:39]} 27. Qxg4 {[%clk 0:01:39]}  hxg4 {[%clk 0:01:39]} 28. Rc3 {[%clk 0:01:19]}  Rxd4 {[%clk 0:01:24]} 29. Rc8+ {[%clk 0:01:18]}  Kh7 {[%clk 0:01:24]} 30. Ra8 {[%clk 0:01:18]}  Rd1 {[%clk 0:00:34]} 31. Rxa6 {[%clk 0:01:18]}  b4 {[%clk 0:00:16]} 32. h5 {[%clk 0:01:10]}  Ra1 {[%clk 0:00:13]} 33. Ra7 {[%clk 0:01:09]}  f6 {[%clk 0:00:11]} 34. h6 {[%clk 0:01:07]}  Rxa2 {[%clk 0:00:06]} 35. Rxg7+ {[%clk 0:01:05]}  Kh8 {[%clk 0:00:06]} 36. Rd7 {[%clk 0:00:59]}  Bb2 {[%clk 0:00:05]} 37. Rxd5 {[%clk 0:00:57]}  Ra3 {[%clk 0:00:05]} 38. Rd8+ {[%clk 0:00:54]}  Kh7 {[%clk 0:00:05]} 39. Rd7+ {[%clk 0:00:54]}  Kh8 {[%clk 0:00:05]} 40. Rg7 {[%clk 0:00:17]}  Rxb3 {[%clk 0:00:05]} 41. Rxg4 {[%clk 0:00:18]}  Bc3 {[%clk 0:00:03]} 42. Rg7 {[%clk 0:00:11]}  Rb1 {[%clk 0:00:02]} 43. Rb7 {[%clk 0:00:10]}  b3 {[%clk 0:00:02]} 44. Rc7 {[%clk 0:00:09]}  b2 {[%clk 0:00:01]} 45. Rxc3 {[%clk 0:00:08]}  Rd1 {[%clk 0:00:02]} 46. Rc8+ {[%clk 0:00:08]}  Kh7 {[%clk 0:00:02]} 47. Rc7+ {[%clk 0:00:08]}  Kh8 {[%clk 0:00:03]} 48. Rb7 {[%clk 0:00:07]}  b1=Q {[%clk 0:00:03]} 49. Rxb1 {[%clk 0:00:07]}  Rxb1 {[%clk 0:00:04]} 50. Kf3 {[%clk 0:00:07]}  Rb5 {[%clk 0:00:04]} 51. g4 {[%clk 0:00:06]}  Kh7 {[%clk 0:00:05]} 52. Be3 {[%clk 0:00:06]}  Kg6 {[%clk 0:00:04]} 53. Kg3 {[%clk 0:00:06]}  f5 {[%clk 0:00:03]} 54. gxf5+ {[%clk 0:00:04]}  Rxf5 {[%clk 0:00:03]} 55. f3 {[%clk 0:00:04]}  Re5 {[%clk 0:00:03]} 56. Kf2 {[%clk 0:00:04]}  Rb5 {[%clk 0:00:04]} 57. Kg3 {[%clk 0:00:04]}  Kh7 {[%clk 0:00:04]} 58. Kf2 {[%clk 0:00:05]}  Kg6 {[%clk 0:00:05]} 59. Kg3 {[%clk 0:00:05]}  Rf5 {[%clk 0:00:04]} 60. Kf2 {[%clk 0:00:05]}  Rb5 {[%clk 0:00:05]} 1/2-1/2


[Site "https://www.chess.com"]

[Event "Titled Tuesday Blitz March 15 Late 2022"]
[White "Le Goff, Ronan"]
[Black "Risteski, Emil"]
[WhiteFideId "612073"]
[BlackFideId "15005267"]
[WhiteElo "2276"]
[BlackElo "2070"]
[Result "0-1"]
[Round "08"]
[TimeControl "180+1"]
[Date "2022.03.16"]
[WhiteClock "0:00:18"]
[BlackClock "0:00:13"]

1. d4 {[%clk 0:02:55]}  e6 {[%clk 0:02:56]} 2. Nf3 {[%clk 0:02:55]}  f5 {[%clk 0:02:57]} 3. Nbd2 {[%clk 0:02:50]}  Nf6 {[%clk 0:02:55]} 4. c3 {[%clk 0:02:45]}  b6 {[%clk 0:02:55]} 5. Qc2 {[%clk 0:02:45]}  Bb7 {[%clk 0:02:55]} 6. h3 {[%clk 0:02:46]}  g6 {[%clk 0:02:52]} 7. g4 {[%clk 0:02:45]}  Bg7 {[%clk 0:02:51]} 8. Rg1 {[%clk 0:02:41]}  d6 {[%clk 0:02:47]} 9. e4 {[%clk 0:02:31]}  Nxe4 {[%clk 0:02:42]} 10. Nxe4 {[%clk 0:02:30]}  Bxe4 {[%clk 0:02:39]} 11. Qa4+ {[%clk 0:02:30]}  Qd7 {[%clk 0:02:30]} 12. Qxd7+ {[%clk 0:02:29]}  Kxd7 {[%clk 0:02:26]} 13. Ng5 {[%clk 0:02:30]}  Bb7 {[%clk 0:02:13]} 14. Bc4 {[%clk 0:02:28]}  d5 {[%clk 0:02:03]} 15. Bb5+ {[%clk 0:02:24]}  c6 {[%clk 0:02:01]} 16. Be2 {[%clk 0:02:22]}  c5 {[%clk 0:01:59]} 17. gxf5 {[%clk 0:02:16]}  exf5 {[%clk 0:01:57]} 18. Be3 {[%clk 0:02:09]}  cxd4 {[%clk 0:01:47]} 19. cxd4 {[%clk 0:02:09]}  Nc6 {[%clk 0:01:46]} 20. Bb5 {[%clk 0:02:07]}  a6 {[%clk 0:01:46]} 21. Bxc6+ {[%clk 0:02:07]}  Bxc6 {[%clk 0:01:47]} 22. Rc1 {[%clk 0:02:08]}  Bb5 {[%clk 0:01:47]} 23. Kd2 {[%clk 0:02:06]}  Bf6 {[%clk 0:01:41]} 24. Nf3 {[%clk 0:02:00]}  Rhc8 {[%clk 0:01:37]} 25. Bf4 {[%clk 0:02:01]}  Rxc1 {[%clk 0:01:34]} 26. Rxc1 {[%clk 0:02:01]}  Rc8 {[%clk 0:01:30]} 27. Rxc8 {[%clk 0:02:00]}  Kxc8 {[%clk 0:01:31]} 28. Be5 {[%clk 0:01:55]}  Be7 {[%clk 0:01:30]} 29. a3 {[%clk 0:01:55]}  Kd7 {[%clk 0:01:30]} 30. Bf4 {[%clk 0:01:55]}  Bf1 {[%clk 0:01:24]} 31. h4 {[%clk 0:01:51]}  Bg2 {[%clk 0:01:23]} 32. Ne5+ {[%clk 0:01:51]}  Ke6 {[%clk 0:01:23]} 33. Bg5 {[%clk 0:01:48]}  Bf8 {[%clk 0:01:18]} 34. Bd8 {[%clk 0:01:47]}  b5 {[%clk 0:01:15]} 35. Bb6 {[%clk 0:01:44]}  Bg7 {[%clk 0:01:14]} 36. Nd3 {[%clk 0:01:41]}  Kd7 {[%clk 0:01:10]} 37. Nc5+ {[%clk 0:01:38]}  Kc6 {[%clk 0:01:10]} 38. Bd8 {[%clk 0:01:37]}  Bxd4 {[%clk 0:00:58]} 39. Nxa6 {[%clk 0:01:37]}  Bxf2 {[%clk 0:00:57]} 40. Nb4+ {[%clk 0:01:35]}  Kd7 {[%clk 0:00:56]} 41. Bg5 {[%clk 0:01:33]}  Bc5 {[%clk 0:00:54]} 42. Nd3 {[%clk 0:01:33]}  Bd6 {[%clk 0:00:52]} 43. b4 {[%clk 0:01:31]}  Be4 {[%clk 0:00:52]} 44. Nc1 {[%clk 0:01:27]}  Be5 {[%clk 0:00:51]} 45. Ne2 {[%clk 0:01:14]}  Bb2 {[%clk 0:00:51]} 46. Nc3 {[%clk 0:01:15]}  Kc6 {[%clk 0:00:48]} 47. a4 {[%clk 0:01:11]}  bxa4 {[%clk 0:00:40]} 48. Nxa4 {[%clk 0:01:09]}  Be5 {[%clk 0:00:37]} 49. Nc5 {[%clk 0:01:06]}  Bd6 {[%clk 0:00:35]} 50. Ne6 {[%clk 0:01:02]}  Bxb4+ {[%clk 0:00:35]} 51. Ke3 {[%clk 0:01:03]}  Kd7 {[%clk 0:00:32]} 52. Nf4 {[%clk 0:00:59]}  Bc5+ {[%clk 0:00:32]} 53. Kd2 {[%clk 0:00:59]}  d4 {[%clk 0:00:32]} 54. Bf6 {[%clk 0:00:59]}  Kd6 {[%clk 0:00:29]} 55. Bg7 {[%clk 0:00:57]}  Bb4+ {[%clk 0:00:29]} 56. Ke2 {[%clk 0:00:57]}  Bc3 {[%clk 0:00:27]} 57. Kd1 {[%clk 0:00:51]}  Kc5 {[%clk 0:00:27]} 58. Ne6+ {[%clk 0:00:47]}  Kc4 {[%clk 0:00:26]} 59. Ng5 {[%clk 0:00:45]}  d3 {[%clk 0:00:24]} 60. Bh6 {[%clk 0:00:34]}  d2 {[%clk 0:00:18]} 61. h5 {[%clk 0:00:34]}  gxh5 {[%clk 0:00:18]} 62. Ke2 {[%clk 0:00:31]}  Bc6 {[%clk 0:00:16]} 63. Ne6 {[%clk 0:00:28]}  Ba4 {[%clk 0:00:15]} 64. Bxd2 {[%clk 0:00:27]}  Be5 {[%clk 0:00:14]} 65. Bf4 {[%clk 0:00:23]}  Bf6 {[%clk 0:00:13]} 66. Bg5 {[%clk 0:00:23]}  Bc3 {[%clk 0:00:12]} 67. Nf4 {[%clk 0:00:22]}  Be8 {[%clk 0:00:12]} 68. Ne6 {[%clk 0:00:18]}  Bg6 {[%clk 0:00:11]} 69. Kf3 {[%clk 0:00:17]}  Kd5 {[%clk 0:00:11]} 70. Nf4+ {[%clk 0:00:17]}  Kd6 {[%clk 0:00:11]} 71. Ne2 {[%clk 0:00:16]}  Be5 {[%clk 0:00:10]} 72. Bf4 {[%clk 0:00:15]}  Ke6 {[%clk 0:00:11]} 73. Bxe5 {[%clk 0:00:16]}  Kxe5 {[%clk 0:00:11]} 74. Nf4 {[%clk 0:00:16]}  Kf6 {[%clk 0:00:12]} 75. Nh3 {[%clk 0:00:16]}  Ke5 {[%clk 0:00:12]} 76. Nf4 {[%clk 0:00:16]}  h4 {[%clk 0:00:12]} 77. Ng2 {[%clk 0:00:16]}  Bh5+ {[%clk 0:00:12]} 78. Kf2 {[%clk 0:00:17]}  h3 {[%clk 0:00:12]} 79. Ne3 {[%clk 0:00:17]}  Bg4 {[%clk 0:00:13]} 80. Nf1 {[%clk 0:00:16]}  Kf4 {[%clk 0:00:13]} 81. Ng3 {[%clk 0:00:16]}  h5 {[%clk 0:00:14]} 82. Nh1 {[%clk 0:00:15]}  h4 {[%clk 0:00:14]} 83. Kg1 {[%clk 0:00:15]}  Kf3 {[%clk 0:00:13]} 84. Kh2 {[%clk 0:00:16]}  Ke2 {[%clk 0:00:13]} 85. Kg1 {[%clk 0:00:14]}  f4 {[%clk 0:00:13]} 86. Kh2 {[%clk 0:00:14]}  f3 {[%clk 0:00:14]} 87. Kg1 {[%clk 0:00:15]}  Ke1 {[%clk 0:00:12]} 88. Nf2 {[%clk 0:00:15]}  h2+ {[%clk 0:00:12]} 89. Kxh2 {[%clk 0:00:14]}  Kxf2 {[%clk 0:00:13]} 90. Kh1 {[%clk 0:00:15]}  Kg3 {[%clk 0:00:13]} 91. Kg1 {[%clk 0:00:15]}  f2+ {[%clk 0:00:14]} 92. Kf1 {[%clk 0:00:16]}  Bh3+ {[%clk 0:00:13]} 93. Ke2 {[%clk 0:00:17]}  f1=Q+ {[%clk 0:00:13]} 94. Kd2 {[%clk 0:00:18]} 0-1


[Site "https://www.chess.com"]

[Event "Titled Tuesday Blitz March 15 Late 2022"]
[White "Lewicki, Miroslaw"]
[Black "Kucuksari, Kaan"]
[WhiteFideId "1113380"]
[BlackFideId "6380166"]
[WhiteElo "2283"]
[BlackElo "2305"]
[Result "0-1"]
[Round "08"]
[TimeControl "180+1"]
[Date "2022.03.15"]
[WhiteClock "0:00:04"]
[BlackClock "0:00:13"]

1. g3 {[%clk 0:03:00]}  d5 {[%clk 0:02:56]} 2. Bg2 {[%clk 0:03:01]}  e5 {[%clk 0:02:55]} 3. d3 {[%clk 0:03:00]}  c6 {[%clk 0:02:51]} 4. Nf3 {[%clk 0:03:00]}  Bd6 {[%clk 0:02:49]} 5. O-O {[%clk 0:03:00]}  Ne7 {[%clk 0:02:49]} 6. c4 {[%clk 0:03:00]}  O-O {[%clk 0:02:49]} 7. cxd5 {[%clk 0:02:58]}  cxd5 {[%clk 0:02:49]} 8. Nc3 {[%clk 0:02:59]}  Nbc6 {[%clk 0:02:49]} 9. a3 {[%clk 0:02:53]}  a6 {[%clk 0:02:47]} 10. b4 {[%clk 0:02:52]}  f6 {[%clk 0:02:44]} 11. Bb2 {[%clk 0:02:50]}  Be6 {[%clk 0:02:43]} 12. Rc1 {[%clk 0:02:49]}  Qd7 {[%clk 0:02:42]} 13. Na4 {[%clk 0:02:48]}  Qd8 {[%clk 0:02:38]} 14. Nc5 {[%clk 0:02:47]}  Bxc5 {[%clk 0:02:36]} 15. Rxc5 {[%clk 0:02:46]}  b6 {[%clk 0:02:34]} 16. Rc2 {[%clk 0:02:45]}  Qd7 {[%clk 0:02:33]} 17. Qd2 {[%clk 0:02:44]}  a5 {[%clk 0:02:32]} 18. b5 {[%clk 0:02:43]}  Na7 {[%clk 0:02:32]} 19. a4 {[%clk 0:02:43]}  Rfc8 {[%clk 0:02:31]} 20. Rfc1 {[%clk 0:02:41]}  Rxc2 {[%clk 0:02:31]} 21. Rxc2 {[%clk 0:02:42]}  Rc8 {[%clk 0:02:32]} 22. Ba3 {[%clk 0:02:42]}  d4 {[%clk 0:02:29]} 23. e3 {[%clk 0:02:30]}  Nf5 {[%clk 0:02:14]} 24. exd4 {[%clk 0:02:21]}  Nxd4 {[%clk 0:02:15]} 25. Nxd4 {[%clk 0:02:16]}  Qxd4 {[%clk 0:02:16]} 26. Rxc8+ {[%clk 0:02:12]}  Nxc8 {[%clk 0:02:16]} 27. Qc2 {[%clk 0:02:09]}  Qa1+ {[%clk 0:01:59]} 28. Bc1 {[%clk 0:02:09]}  Ne7 {[%clk 0:01:55]} 29. Bf3 {[%clk 0:01:32]}  Nf5 {[%clk 0:01:44]} 30. Qc6 {[%clk 0:01:27]}  Kf7 {[%clk 0:01:35]} 31. Kg2 {[%clk 0:01:05]}  Qd4 {[%clk 0:01:20]} 32. Qc7+ {[%clk 0:00:57]}  Kg6 {[%clk 0:01:12]} 33. h4 {[%clk 0:00:56]}  h5 {[%clk 0:01:03]} 34. Qb8 {[%clk 0:00:41]}  Bf7 {[%clk 0:00:23]} 35. Qh8 {[%clk 0:00:35]}  Nh6 {[%clk 0:00:20]} 36. Be4+ {[%clk 0:00:22]}  f5 {[%clk 0:00:19]} 37. Be3 {[%clk 0:00:22]}  Qd6 {[%clk 0:00:18]} 38. Bf3 {[%clk 0:00:17]}  Qxd3 {[%clk 0:00:15]} 39. Qc8 {[%clk 0:00:04]}  e4 {[%clk 0:00:13]} 0-1


[Site "https://www.chess.com"]

[Event "Titled Tuesday Blitz March 15 Late 2022"]
[White "Ljukin, Sergei"]
[Black "Ambartsumova, Karina"]
[WhiteFideId "14102200"]
[BlackFideId "4166299"]
[WhiteElo "2312"]
[BlackElo "2262"]
[Result "1/2-1/2"]
[Round "08"]
[TimeControl "180+1"]
[Date "2022.03.15"]
[WhiteClock "0:00:05"]
[BlackClock "0:00:10"]

1. e4 {[%clk 0:02:55]}  c5 {[%clk 0:02:56]} 2. Nf3 {[%clk 0:02:54]}  e6 {[%clk 0:02:54]} 3. d4 {[%clk 0:02:55]}  cxd4 {[%clk 0:02:55]} 4. Nxd4 {[%clk 0:02:55]}  a6 {[%clk 0:02:55]} 5. Bd3 {[%clk 0:02:54]}  Bc5 {[%clk 0:02:51]} 6. Nb3 {[%clk 0:02:54]}  Ba7 {[%clk 0:02:51]} 7. Qe2 {[%clk 0:02:53]}  Ne7 {[%clk 0:02:50]} 8. Be3 {[%clk 0:02:52]}  Bxe3 {[%clk 0:02:49]} 9. Qxe3 {[%clk 0:02:53]}  d6 {[%clk 0:02:49]} 10. c4 {[%clk 0:02:48]}  e5 {[%clk 0:02:43]} 11. Nc3 {[%clk 0:02:48]}  Be6 {[%clk 0:02:44]} 12. O-O {[%clk 0:02:43]}  Nd7 {[%clk 0:02:44]} 13. Nd5 {[%clk 0:02:40]}  O-O {[%clk 0:02:18]} 14. Rac1 {[%clk 0:02:36]}  f5 {[%clk 0:02:08]} 15. Nxe7+ {[%clk 0:02:30]}  Qxe7 {[%clk 0:02:09]} 16. exf5 {[%clk 0:02:30]}  Bxf5 {[%clk 0:02:07]} 17. Bxf5 {[%clk 0:02:29]}  Rxf5 {[%clk 0:02:08]} 18. Rcd1 {[%clk 0:02:27]}  Rf6 {[%clk 0:01:54]} 19. Rd2 {[%clk 0:02:16]}  Nf8 {[%clk 0:01:51]} 20. c5 {[%clk 0:02:10]}  dxc5 {[%clk 0:01:48]} 21. Qxc5 {[%clk 0:02:10]}  Qxc5 {[%clk 0:01:22]} 22. Nxc5 {[%clk 0:02:09]}  b6 {[%clk 0:01:23]} 23. Ne4 {[%clk 0:02:08]}  Rc6 {[%clk 0:01:21]} 24. Re1 {[%clk 0:01:57]}  Rac8 {[%clk 0:01:13]} 25. Nc3 {[%clk 0:01:56]}  Ng6 {[%clk 0:01:08]} 26. g3 {[%clk 0:01:55]}  b5 {[%clk 0:01:06]} 27. Nd5 {[%clk 0:01:50]}  Rc2 {[%clk 0:01:01]} 28. Ree2 {[%clk 0:01:50]}  Rxd2 {[%clk 0:00:37]} 29. Rxd2 {[%clk 0:01:49]}  Kf7 {[%clk 0:00:36]} 30. h4 {[%clk 0:01:42]}  h5 {[%clk 0:00:35]} 31. Kg2 {[%clk 0:01:35]}  Ke6 {[%clk 0:00:34]} 32. Ne3 {[%clk 0:01:34]}  Ne7 {[%clk 0:00:28]} 33. Kf3 {[%clk 0:01:16]}  Rf8+ {[%clk 0:00:27]} 34. Ke2 {[%clk 0:01:05]}  Nc6 {[%clk 0:00:27]} 35. Nc2 {[%clk 0:00:58]}  Rc8 {[%clk 0:00:18]} 36. Ke3 {[%clk 0:00:57]}  Ne7 {[%clk 0:00:19]} 37. Ke2 {[%clk 0:00:53]}  Nc6 {[%clk 0:00:17]} 38. Ne3 {[%clk 0:00:34]}  Nd4+ {[%clk 0:00:16]} 39. Kd3 {[%clk 0:00:34]}  Nf3 {[%clk 0:00:14]} 40. Re2 {[%clk 0:00:32]}  Rd8+ {[%clk 0:00:13]} 41. Kc3 {[%clk 0:00:29]}  Rc8+ {[%clk 0:00:10]} 42. Kb4 {[%clk 0:00:27]}  Nd4 {[%clk 0:00:10]} 43. Rd2 {[%clk 0:00:25]}  Nc6+ {[%clk 0:00:08]} 44. Kc5 {[%clk 0:00:22]}  Nd4+ {[%clk 0:00:07]} 45. Kb6 {[%clk 0:00:22]}  Rc6+ {[%clk 0:00:08]} 46. Kb7 {[%clk 0:00:21]}  Rd6 {[%clk 0:00:08]} 47. b4 {[%clk 0:00:16]}  g6 {[%clk 0:00:06]} 48. a3 {[%clk 0:00:16]}  e4 {[%clk 0:00:06]} 49. Rd1 {[%clk 0:00:14]}  Ke5 {[%clk 0:00:06]} 50. Rc1 {[%clk 0:00:14]}  Nf3 {[%clk 0:00:05]} 51. Rc5+ {[%clk 0:00:14]}  Kd4 {[%clk 0:00:05]} 52. Rc6 {[%clk 0:00:12]}  Rxc6 {[%clk 0:00:05]} 53. Kxc6 {[%clk 0:00:12]}  Ne5+ {[%clk 0:00:02]} 54. Kb6 {[%clk 0:00:12]}  Nd3 {[%clk 0:00:03]} 55. Nd1 {[%clk 0:00:12]}  Nxf2 {[%clk 0:00:04]} 56. Nxf2 {[%clk 0:00:11]}  e3 {[%clk 0:00:05]} 57. Nh3 {[%clk 0:00:06]}  e2 {[%clk 0:00:05]} 58. Ng1 {[%clk 0:00:07]}  Ke3 {[%clk 0:00:03]} 59. Nxe2 {[%clk 0:00:07]}  Kxe2 {[%clk 0:00:03]} 60. Kxa6 {[%clk 0:00:07]}  Kf3 {[%clk 0:00:04]} 61. Kxb5 {[%clk 0:00:08]}  Kxg3 {[%clk 0:00:05]} 62. Ka5 {[%clk 0:00:07]}  Kxh4 {[%clk 0:00:06]} 63. b5 {[%clk 0:00:08]}  g5 {[%clk 0:00:07]} 64. b6 {[%clk 0:00:09]}  g4 {[%clk 0:00:08]} 65. b7 {[%clk 0:00:09]}  Kh3 {[%clk 0:00:08]} 66. b8=Q {[%clk 0:00:10]}  h4 {[%clk 0:00:09]} 67. Qb3+ {[%clk 0:00:09]}  g3 {[%clk 0:00:09]} 68. Qf3 {[%clk 0:00:10]}  Kh2 {[%clk 0:00:09]} 69. Qg4 {[%clk 0:00:10]}  h3 {[%clk 0:00:08]} 70. Qf4 {[%clk 0:00:09]}  Kg2 {[%clk 0:00:08]} 71. Qd2+ {[%clk 0:00:09]}  Kh1 {[%clk 0:00:08]} 72. Qe1+ {[%clk 0:00:09]}  Kh2 {[%clk 0:00:09]} 73. Qe5 {[%clk 0:00:09]}  Kg2 {[%clk 0:00:09]} 74. Qe4+ {[%clk 0:00:08]}  Kh2 {[%clk 0:00:09]} 75. Qf4 {[%clk 0:00:07]}  Kg2 {[%clk 0:00:09]} 76. Qe4+ {[%clk 0:00:07]}  Kh2 {[%clk 0:00:10]} 77. Qe2+ {[%clk 0:00:06]}  g2 {[%clk 0:00:10]} 78. Qf2 {[%clk 0:00:06]}  Kh1 {[%clk 0:00:10]} 79. Qf3 {[%clk 0:00:05]}  Kh2 {[%clk 0:00:10]} 80. Qf2 {[%clk 0:00:04]}  Kh1 {[%clk 0:00:10]} 81. Qf3 {[%clk 0:00:04]}  Kh2 {[%clk 0:00:11]} 82. Qf4+ {[%clk 0:00:04]}  Kh1 {[%clk 0:00:11]} 83. Qe4 {[%clk 0:00:04]}  Kh2 {[%clk 0:00:10]} 84. Qf4+ {[%clk 0:00:04]}  Kh1 {[%clk 0:00:10]} 85. Qe4 {[%clk 0:00:04]}  Kh2 {[%clk 0:00:10]} 86. Qf4+ {[%clk 0:00:05]} 1/2-1/2


[Site "https://www.chess.com"]

[Event "Titled Tuesday Blitz March 15 Late 2022"]
[White "Matinian, Nikita"]
[Black "Ozates, Tuna"]
[WhiteFideId "24129100"]
[BlackFideId "6354521"]
[WhiteElo "2422"]
[BlackElo "1887"]
[Result "1-0"]
[Round "08"]
[TimeControl "180+1"]
[Date "2022.03.16"]
[WhiteClock "0:00:08"]
[BlackClock "0:00:09"]

1. e4 {[%clk 0:02:55]}  c5 {[%clk 0:02:59]} 2. Nc3 {[%clk 0:02:55]}  Nc6 {[%clk 0:02:59]} 3. Bb5 {[%clk 0:02:54]}  Nd4 {[%clk 0:02:59]} 4. Nf3 {[%clk 0:02:55]}  e6 {[%clk 0:02:58]} 5. O-O {[%clk 0:02:54]}  Ne7 {[%clk 0:02:57]} 6. Nxd4 {[%clk 0:02:52]}  cxd4 {[%clk 0:02:57]} 7. Ne2 {[%clk 0:02:52]}  Nc6 {[%clk 0:02:57]} 8. d3 {[%clk 0:02:49]}  Bc5 {[%clk 0:02:54]} 9. f4 {[%clk 0:02:46]}  O-O {[%clk 0:02:53]} 10. Bd2 {[%clk 0:02:45]}  f5 {[%clk 0:02:48]} 11. Ng3 {[%clk 0:02:41]}  Ne7 {[%clk 0:02:43]} 12. Re1 {[%clk 0:02:38]}  a6 {[%clk 0:02:43]} 13. Bc4 {[%clk 0:02:38]}  b5 {[%clk 0:02:44]} 14. Bb3 {[%clk 0:02:38]}  Bb7 {[%clk 0:02:44]} 15. exf5 {[%clk 0:02:34]}  Nxf5 {[%clk 0:02:42]} 16. Nxf5 {[%clk 0:02:33]}  Rxf5 {[%clk 0:02:41]} 17. Rxe6 {[%clk 0:02:33]}  Kh8 {[%clk 0:02:12]} 18. Re5 {[%clk 0:02:28]}  Rxe5 {[%clk 0:01:54]} 19. fxe5 {[%clk 0:02:29]}  Qh4 {[%clk 0:01:49]} 20. Qe1 {[%clk 0:02:21]}  Qg4 {[%clk 0:01:44]} 21. Qg3 {[%clk 0:02:21]}  Qe2 {[%clk 0:01:31]} 22. Bg5 {[%clk 0:02:09]}  Rf8 {[%clk 0:01:23]} 23. Re1 {[%clk 0:02:06]}  Qh5 {[%clk 0:01:19]} 24. e6 {[%clk 0:01:41]}  dxe6 {[%clk 0:01:04]} 25. Bxe6 {[%clk 0:01:41]}  Bb4 {[%clk 0:01:03]} 26. Ra1 {[%clk 0:01:02]}  h6 {[%clk 0:01:03]} 27. Bf4 {[%clk 0:00:56]}  Qe2 {[%clk 0:00:26]} 28. Be5 {[%clk 0:00:55]}  Qxg2+ {[%clk 0:00:27]} 29. Qxg2 {[%clk 0:00:54]}  Bxg2 {[%clk 0:00:27]} 30. Kxg2 {[%clk 0:00:50]}  Re8 {[%clk 0:00:28]} 31. Bxd4 {[%clk 0:00:37]}  Rxe6 {[%clk 0:00:27]} 32. c3 {[%clk 0:00:38]}  Bd6 {[%clk 0:00:22]} 33. h4 {[%clk 0:00:25]}  Re2+ {[%clk 0:00:22]} 34. Kf3 {[%clk 0:00:25]}  Rxb2 {[%clk 0:00:23]} 35. Rg1 {[%clk 0:00:25]}  Bf8 {[%clk 0:00:20]} 36. Rg6 {[%clk 0:00:25]}  Kh7 {[%clk 0:00:19]} 37. Rxa6 {[%clk 0:00:26]}  b4 {[%clk 0:00:15]} 38. c4 {[%clk 0:00:19]}  Rh2 {[%clk 0:00:14]} 39. Bf2 {[%clk 0:00:16]}  Rh1 {[%clk 0:00:09]} 40. d4 {[%clk 0:00:15]}  Rc1 {[%clk 0:00:08]} 41. c5 {[%clk 0:00:15]}  Be7 {[%clk 0:00:05]} 42. h5 {[%clk 0:00:13]}  Bf6 {[%clk 0:00:05]} 43. d5 {[%clk 0:00:12]}  Rc3+ {[%clk 0:00:03]} 44. Ke4 {[%clk 0:00:11]}  Rc2 {[%clk 0:00:03]} 45. Be3 {[%clk 0:00:11]}  Kg8 {[%clk 0:00:04]} 46. d6 {[%clk 0:00:11]}  Kf7 {[%clk 0:00:04]} 47. Ra7+ {[%clk 0:00:10]}  Ke6 {[%clk 0:00:04]} 48. Ra6 {[%clk 0:00:09]}  Kd7 {[%clk 0:00:04]} 49. Kd5 {[%clk 0:00:05]}  Rc3 {[%clk 0:00:03]} 50. c6+ {[%clk 0:00:06]}  Ke8 {[%clk 0:00:04]} 51. d7+ {[%clk 0:00:04]}  Kf7 {[%clk 0:00:04]} 52. Bc5 {[%clk 0:00:05]}  Rd3+ {[%clk 0:00:04]} 53. Kc4 {[%clk 0:00:05]}  Rd1 {[%clk 0:00:02]} 54. Ra7 {[%clk 0:00:04]}  Ke6 {[%clk 0:00:02]} 55. Ra8 {[%clk 0:00:04]}  Rc1+ {[%clk 0:00:02]} 56. Kb5 {[%clk 0:00:05]}  Kf7 {[%clk 0:00:02]} 57. d8=Q {[%clk 0:00:04]}  Bxd8 {[%clk 0:00:03]} 58. Rxd8 {[%clk 0:00:05]}  Rc2 {[%clk 0:00:01]} 59. Bxb4 {[%clk 0:00:04]}  Ke6 {[%clk 0:00:02]} 60. Rd6+ {[%clk 0:00:03]}  Ke5 {[%clk 0:00:02]} 61. Rd7 {[%clk 0:00:04]}  Rxa2 {[%clk 0:00:02]} 62. Rxg7 {[%clk 0:00:04]}  Rc2 {[%clk 0:00:03]} 63. c7 {[%clk 0:00:04]}  Kf5 {[%clk 0:00:03]} 64. Rd7 {[%clk 0:00:04]}  Rc1 {[%clk 0:00:04]} 65. Rd5+ {[%clk 0:00:05]}  Ke6 {[%clk 0:00:04]} 66. Rc5 {[%clk 0:00:05]}  Rxc5+ {[%clk 0:00:04]} 67. Bxc5 {[%clk 0:00:06]}  Kd7 {[%clk 0:00:05]} 68. Kb6 {[%clk 0:00:06]}  Kc8 {[%clk 0:00:06]} 69. Be3 {[%clk 0:00:07]}  Kd7 {[%clk 0:00:06]} 70. Bxh6 {[%clk 0:00:07]}  Kc8 {[%clk 0:00:07]} 71. Bf4 {[%clk 0:00:07]}  Kd7 {[%clk 0:00:08]} 72. h6 {[%clk 0:00:08]}  Kc8 {[%clk 0:00:08]} 73. h7 {[%clk 0:00:08]}  Kd7 {[%clk 0:00:08]} 74. h8=Q {[%clk 0:00:09]}  Ke7 {[%clk 0:00:09]} 75. Qd8+ {[%clk 0:00:08]}  Kf7 {[%clk 0:00:09]} 76. Qd6 {[%clk 0:00:08]}  Kg7 {[%clk 0:00:09]} 77. c8=Q {[%clk 0:00:08]}  Kh7 {[%clk 0:00:09]} 78. Qcc7+ {[%clk 0:00:08]} 1-0


[Site "https://www.chess.com"]